bitfinex/quotes_ETHUSD_20241101
["timestamp","ask_amount","ask_price","bid_price","bid_amount"]
[1730494503546,3.96973,2519.1,2519.0,0.12422643]
[1730494504966,3.96973,2519.1,2519.0,0.12422773]
[1730494505944,4.9857737,2519.1,2519.0,0.12422773]
[1730494508260,4.9857737,2519.1,2518.7,0.4673]
[1730494508463,3.96985,2519.0,2518.8,0.12422911]
[1730494508686,3.96985,2519.0,2518.9,0.12422911]
[1730494509463,3.96969,2519.1,2518.9,0.12422911]
[1730494509667,3.96969,2519.1,2519.0,0.12422911]
[1730494510561,3.96932,2519.4,2519.0,0.21410311]
[1730494510750,0.62151805,2519.5,2519.0,0.21410311]
[1730494510751,3.96944,2519.3,2519.0,0.21410311]
[1730494511316,3.96902,2519.6,2519.1,3.96958]
[1730494512185,3.96905,2519.5,2519.1,3.96958]
[1730494512362,3.96905,2519.5,2519.2,0.19872899]
[1730494512693,3.96905,2519.5,2519.1,3.96958]
[1730494512989,3.96905,2519.5,2519.2,0.19873015]
[1730494513189,3.96905,2519.5,2519.3,0.19872217]
[1730494513349,3.96905,2519.5,2519.1,3.96958]
[1730494513548,3.96905,2519.5,2519.3,0.2141]
[1730494521464,3.96891,2519.6,2519.3,0.2141]
[1730494522698,3.96891,2519.6,2519.4,0.12420338]
[1730494522869,3.96891,2519.6,2519.2,0.19872546]
[1730494523070,3.96891,2519.6,2519.3,0.1242037]
[1730494523273,4.9890957,2519.6,2519.4,0.1242037]
[1730494523607,4.9890957,2519.6,2519.1,4.18368]
[1730494523820,3.96891,2519.6,2519.1,4.18368]
[1730494524106,3.96891,2519.6,2519.2,0.32292869]
[1730494524308,3.96891,2519.6,2519.1,4.18368]
[1730494524470,3.96891,2519.6,2519.3,0.12420321]
[1730494524675,3.96891,2519.6,2519.4,0.12420321]
[1730494524906,4.9890957,2519.6,2519.1,8.15327]
[1730494525206,3.96891,2519.6,2519.2,0.32292876]
[1730494525499,3.96891,2519.6,2519.3,0.12420337]
[1730494525807,3.96904,2519.5,2519.4,0.12420337]
[1730494527523,4.76044,2519.5,2519.4,0.12420337]
[1730494527732,5.7786717,2519.5,2519.4,0.12420415]
[1730494529932,5.7786717,2519.5,2519.4,0.12420432]
[1730494531225,5.7786717,2519.5,2519.1,8.15325]
[1730494531430,4.76044,2519.5,2519.2,0.32292855]
[1730494531631,4.76044,2519.5,2519.3,0.12420329]
[1730494531840,4.76044,2519.5,2519.4,0.12420329]
[1730494532613,4.76044,2519.5,2519.2,0.19873218]
[1730494532915,4.76044,2519.5,2519.3,0.12420347]
[1730494533135,4.76044,2519.5,2519.4,0.12420347]
[1730494533434,5.7786717,2519.5,2519.4,0.12420347]
[1730494534701,5.7786717,2519.5,2519.1,4.18369]
[1730494534932,4.76044,2519.5,2519.2,0.32292657]
[1730494535142,4.76044,2519.5,2519.3,0.12420179]
[1730494535295,4.76044,2519.5,2519.1,4.18369]
[1730494535500,4.76044,2519.5,2519.2,0.32292781]
[1730494535824,4.76044,2519.5,2519.3,0.12420292]
[1730494536020,4.76044,2519.5,2519.4,0.12420292]
[1730494538325,4.76044,2519.5,2519.4,0.12420484]
[1730494539437,4.76044,2519.5,2519.4,0.12420485]
[1730494539641,4.76044,2519.5,2519.4,0.12420462]
[1730494542333,5.7786607,2519.5,2519.4,0.12420462]
[1730494548484,5.7786607,2519.5,2519.1,4.18369]
[1730494548682,4.76044,2519.5,2519.1,4.18369]
[1730494549038,4.59033002,2519.6,2519.1,4.18369]
[1730494551087,4.59033002,2519.6,2519.2,0.32292877]
[1730494551442,3.9691,2519.5,2519.2,0.32292877]
[1730494552369,3.9691,2519.5,2519.1,4.18369]
[1730494552802,0.62142002,2519.6,2519.2,3.9695]
[1730494553101,3.96906,2519.5,2519.3,0.32293175]
[1730494553398,3.96906,2519.5,2519.4,0.32293175]
[1730494553965,5.0532637,2519.5,2519.4,0.32293175]
[1730494554163,7.29816068,2519.5,2519.4,0.12420452]
[1730494554369,0.7919,2519.4,2518.7,0.39657161]
[1730494554600,3.9699,2519.0,2518.8,0.5714217]
[1730494554800,3.9699,2519.0,2518.9,0.5714217]
[1730494555008,4.84305,2519.0,2518.9,0.32297748]
[1730494555568,4.84305,2519.0,2518.9,0.12422211]
[1730494556556,5.64965,2519.0,2518.9,0.12422211]
[1730494557380,3.97053,2518.6,2518.4,19.8931182]
[1730494557601,4.764613,2518.6,2518.4,19.8931182]
[1730494557791,3.97053,2518.6,2518.5,0.19879263]
[1730494557978,3.97053,2518.6,2518.5,0.32303802]
[1730494559303,3.97053,2518.6,2518.5,0.12424539]
[1730494559602,3.97053,2518.6,2518.5,0.3230362]
[1730494559767,3.97053,2518.6,2518.5,0.12424539]
[1730494559968,7.94071,2518.7,2518.5,0.12424539]
[1730494560268,3.96986,2519.0,2518.7,0.2141]
[1730494560470,3.96986,2519.0,2518.8,0.12424539]
[1730494560471,7.93983,2519.0,2518.8,0.12424539]
[1730494560698,7.93977,2519.0,2518.7,0.2141]
[1730494560901,7.93977,2519.0,2518.8,0.12423066]
[1730494560902,7.93979,2519.0,2518.8,0.12423066]
[1730494561064,4.78531,2519.2,2518.9,0.12423066]
[1730494561270,3.96929,2519.4,2519.0,0.12423066]
[1730494561490,4.5934887,2519.3,2519.1,0.12423066]
[1730494561682,4.5934887,2519.3,2519.2,0.12423066]
[1730494562876,0.6241087,2519.3,2519.2,0.12423066]
[1730494563184,3.96935,2519.3,2519.2,0.12423066]
[1730494564240,3.96935,2519.3,2519.1,0.2141]
[1730494564450,3.96935,2519.3,2519.2,0.12421544]
[1730494568122,5.42234698,2519.3,2518.7,4.43274089]
[1730494568442,3.96973,2519.1,2518.8,0.32297189]
[1730494568648,3.96973,2519.1,2518.9,0.32297189]
[1730494568855,3.96973,2519.1,2519.0,0.12421994]
[1730494569350,0.7607,2519.2,2519.0,0.12421994]
[1730494569512,4.73024,2519.2,2518.7,4.18429]
[1730494569845,4.73024,2519.2,2518.8,0.32298495]
[1730494570143,4.73024,2519.2,2518.9,0.12422498]
[1730494570357,4.73024,2519.2,2519.0,0.12422498]
[1730494570646,5.79972017,2519.2,2518.7,4.18427]
[1730494570835,3.96971,2519.1,2518.8,0.32298839]
[1730494571046,3.96971,2519.1,2518.9,0.1242263]
[1730494571216,3.96971,2519.1,2519.0,0.1242263]
[1730494572985,3.96983,2519.0,2518.8,0.19876339]
[1730494573151,3.96983,2519.0,2518.9,0.12422871]
[1730494574958,4.839853,2519.0,2518.9,0.12422871]
[1730494575404,4.839853,2519.0,2518.5,8.15515]
[1730494575589,3.96983,2519.0,2518.6,3.97044]
[1730494575756,3.96983,2519.0,2518.7,0.1242301]
[1730494575962,3.96983,2519.0,2518.8,0.1242301]
[1730494576160,3.96983,2519.0,2518.9,0.1242301]
[1730494582809,3.96983,2519.0,2518.5,4.18459]
[1730494582987,3.96983,2519.0,2518.9,0.12422907]
[1730494583187,4.839853,2519.0,2518.9,0.12422907]
[1730494584124,4.839853,2519.0,2518.7,0.19876972]
[1730494584288,3.96983,2519.0,2518.5,8.10051667]
[1730494584885,3.97,2518.9,2518.5,4.12999667]
[1730494585099,3.96983,2519.0,2518.5,8.10051667]
[1730494586023,3.96983,2519.0,2518.5,4.12999667]
[1730494586216,3.96983,2519.0,2518.5,8.10051667]
[1730494586523,3.96983,2519.0,2518.5,8.34897593]
[1730494586727,3.96983,2519.0,2518.5,8.10051667]
[1730494587403,3.96983,2519.0,2518.6,3.97045]
[1730494587602,3.96973,2519.1,2518.7,3.97022]
[1730494588004,3.96973,2519.1,2518.8,0.1595]
[1730494588204,7.93952,2519.1,2518.8,0.1595]
[1730494589019,3.96973,2519.1,2518.8,0.1595]
[1730494590134,7.93951,2519.1,2518.8,0.1595]
[1730494594035,7.93951,2519.1,2518.9,0.19876388]
[1730494594243,7.93951,2519.1,2518.8,0.1595]
[1730494594420,7.93951,2519.1,2518.9,0.19876455]
[1730494594622,7.93951,2519.1,2518.8,0.1595]
[1730494594914,7.93951,2519.1,2518.9,0.19876315]
[1730494595117,7.93951,2519.1,2518.8,0.1595]
[1730494595329,7.93951,2519.1,2518.9,0.19876317]
[1730494595552,7.93951,2519.1,2518.8,0.1595]
[1730494595729,7.93951,2519.1,2518.9,0.19876434]
[1730494595932,7.93951,2519.1,2519.0,0.12422768]
[1730494596431,8.811041,2519.1,2519.0,0.12422768]
[1730494597753,4.841261,2519.1,2519.0,0.12422768]
[1730494597972,3.96984,2519.0,2518.8,0.1595]
[1730494598263,3.96984,2519.0,2518.9,0.32299311]
[1730494601434,3.96984,2519.0,2518.8,0.1595]
[1730494601643,3.96984,2519.0,2518.9,0.19876408]
[1730494601882,3.96984,2519.0,2518.9,0.32299163]
[1730494602203,3.81984,2519.0,2518.9,0.32299163]
[1730494603714,3.96974,2519.1,2518.9,0.32299163]
[1730494603905,3.96974,2519.1,2519.0,0.32299163]
[1730494607223,3.96929,2519.4,2519.0,0.32299163]
[1730494607522,3.96929,2519.4,2519.1,0.73092167]
[1730494607706,3.96936,2519.3,2519.2,0.32299163]
[1730494609095,3.96936,2519.3,2519.2,0.32295565]
[1730494610980,3.96936,2519.3,2519.2,0.13455065]
[1730494611183,4.77176,2519.3,2519.2,0.13455065]
[1730494612623,0.68643371,2519.7,2519.2,0.13455065]
[1730494612827,0.68643371,2519.7,2519.1,4.12902]
[1730494612828,3.96895,2519.6,2519.3,0.24842921]
[1730494613119,3.96895,2519.6,2519.1,4.12902]
[1730494613120,3.96905,2519.5,2519.1,4.12902]
[1730494615832,3.96905,2519.5,2519.2,0.24840902]
[1730494617217,3.96905,2519.5,2519.1,4.12902]
[1730494618988,3.96905,2519.5,2519.2,0.24840322]
[1730494619216,3.96905,2519.5,2519.1,4.12902]
[1730494619614,3.96905,2519.5,2519.2,0.24840327]
[1730494619916,3.96905,2519.5,2519.1,4.12902]
[1730494620118,3.96905,2519.5,2519.2,0.24840131]
[1730494620329,3.96905,2519.5,2519.1,4.12902]
[1730494620540,3.96905,2519.5,2519.2,0.2484036]
[1730494620847,3.96898,2519.6,2519.1,4.12902]
[1730494621203,3.96898,2519.6,2519.2,0.19872334]
[1730494621432,3.96898,2519.6,2519.3,0.19872334]
[1730494621746,4.90726537,2519.6,2519.4,0.19872552]
[1730494622041,4.90726537,2519.6,2519.2,0.24840896]
[1730494622345,4.90726537,2519.6,2519.3,0.19872545]
[1730494622512,3.96905,2519.5,2519.1,4.12902]
[1730494622844,3.9689,2519.6,2519.2,4.16816625]
[1730494623015,3.9689,2519.6,2519.3,0.32292893]
[1730494623207,3.9689,2519.6,2519.4,0.32292893]
[1730494623408,3.9689,2519.6,2519.5,0.12420268]
[1730494623633,4.90717837,2519.6,2519.5,0.12420268]
[1730494625451,0.93827837,2519.6,2519.5,0.12420268]
[1730494625647,4.65522371,2519.7,2519.5,0.12420268]
[1730494625813,0.68643371,2519.7,2519.6,0.12419672]
[1730494626014,4.65515371,2519.7,2519.4,0.1595]
[1730494626226,4.65515371,2519.7,2519.5,0.12419774]
[1730494626424,0.68643371,2519.7,2519.4,4.12868]
[1730494626777,0.68643371,2519.7,2519.5,0.12419214]
[1730494626971,0.68643371,2519.7,2519.6,0.12419214]
[1730494628309,0.68643371,2519.7,2519.6,0.3228857]
[1730494628514,0.68643371,2519.7,2519.6,4.29176088]
[1730494628939,3.96805,2520.2,2519.8,0.1595]
[1730494629152,3.9681,2520.1,2519.9,0.12419214]
[1730494629350,3.9681,2520.1,2519.8,0.1595]
[1730494629650,3.9681,2520.1,2519.9,0.12417207]
[1730494629853,3.9681,2520.1,2519.8,0.1595]
[1730494630013,3.9681,2520.1,2519.9,0.12417245]
[1730494630213,3.9681,2520.1,2519.8,0.1595]
[1730494630445,3.9681,2520.1,2519.9,0.1241723]
[1730494630649,3.9681,2520.1,2519.8,0.1595]
[1730494630851,3.9681,2520.1,2519.9,0.12417255]
[1730494631047,3.9681,2520.1,2519.8,0.1595]
[1730494631258,4.73958,2520.3,2519.8,0.98904562]
[1730494631452,3.96793,2520.2,2519.9,0.12417283]
[1730494631643,3.96793,2520.2,2519.8,4.12804]
[1730494633130,4.73958,2520.3,2519.9,3.96829]
[1730494633340,4.73958,2520.3,2519.8,4.12799]
[1730494633624,4.73958,2520.3,2519.8,8.09642]
[1730494633853,8.70749,2520.3,2519.8,8.09642]
[1730494634263,3.96778,2520.3,2519.9,3.96837]
[1730494634768,7.93568,2520.3,2519.8,5.0828717]
[1730494634962,3.96778,2520.3,2519.8,9.0513517]
[1730494635469,3.96778,2520.3,2519.9,3.9684]
[1730494636084,3.96778,2520.3,2519.9,3.96832]
[1730494636280,3.96778,2520.3,2519.9,4.87345617]
[1730494637247,3.96764,2520.4,2519.9,8.84170617]
[1730494637454,3.96764,2520.4,2519.9,4.87338617]
[1730494638074,3.96764,2520.4,2519.9,3.96825]
[1730494638482,4.73297,2520.5,2519.9,3.96825]
[1730494638665,3.9677,2520.4,2520.0,3.96825]
[1730494638979,3.9677,2520.4,2519.9,3.96833]
[1730494639188,3.9677,2520.4,2520.0,3.96821]
[1730494639392,3.9677,2520.4,2520.0,4.9231137]
[1730494639544,3.9677,2520.4,2520.0,0.9549037]
[1730494639882,0.7655,2520.5,2520.1,3.96797]
[1730494640085,4.65356628,2520.6,2520.1,3.96797]
[1730494640086,4.65356628,2520.6,2520.2,5.42089698]
[1730494640259,4.65356628,2520.6,2520.3,0.9548367]
[1730494641349,4.65356628,2520.6,2520.1,4.12758]
[1730494642392,4.65356628,2520.6,2520.2,3.96786]
[1730494643047,4.65356628,2520.6,2520.2,3.96786]
[1730494643783,0.68619628,2520.6,2520.2,9.38866698]
[1730494644163,0.47045362,2520.6,2520.5,3.96746]
[1730494644361,0.53104813,2521.6,2521.2,0.1595]
[1730494644362,3.9658,2521.6,2521.2,0.1595]
[1730494644660,3.96598,2521.5,2520.9,0.1595]
[1730494644879,0.06878461,2522.2,2521.6,3.96561]
[1730494644880,4.79323461,2522.2,2521.6,3.96561]
[1730494645061,4.79323461,2522.2,2521.5,0.1595]
[1730494645062,0.7596,2522.2,2521.7,3.96543]
[1730494645388,0.7596,2522.2,2521.5,8.09107]
[1730494645588,3.96504,2522.1,2521.5,4.12538]
[1730494645752,5.19682,2522.2,2521.6,3.96572]
[1730494646370,5.19682,2522.2,2521.5,4.12538]
[1730494646371,1.23203,2522.2,2521.7,3.9655]
[1730494646689,1.23203,2522.2,2521.7,3.96547]
[1730494646872,1.23203,2522.2,2521.7,7.93094]
[1730494647072,0.51968,2522.1,2521.7,3.96547]
[1730494647273,0.51968,2522.1,2521.8,3.96539]
[1730494647587,0.7596,2522.2,2521.9,3.96514]
[1730494647791,0.7733,2522.4,2522.0,3.96509]
[1730494648550,0.7733,2522.4,2522.1,1.45299698]
[1730494648797,4.74195,2522.8,2522.2,3.96465]
[1730494649108,0.7923,2523.8,2522.9,0.1595]
[1730494649250,0.7923,2523.8,2523.5,1.45299698]
[1730494649451,4.75405,2524.2,2523.7,1.45299698]
[1730494649772,3.96134,2524.4,2523.8,3.96217]
[1730494650082,3.96134,2524.4,2523.9,1.45299698]
[1730494650461,3.96183,2524.1,2523.5,0.1595]
[1730494650667,0.396183,2524.0,2523.5,8.08488]
[1730494650887,0.396183,2524.0,2523.5,4.12215]
[1730494651074,3.96167,2524.2,2523.5,4.12215]
[1730494651391,3.96167,2524.2,2523.6,3.774565]
[1730494651590,3.96167,2524.2,2523.5,4.12215]
[1730494651757,3.96167,2524.2,2523.5,4.20139614]
[1730494651957,3.96184,2524.1,2523.5,4.12215]
[1730494652285,0.396184,2524.0,2523.5,4.12215]
[1730494653091,0.396184,2524.0,2523.6,3.96259]
[1730494653392,3.96154,2524.3,2523.6,3.96259]
[1730494653599,3.96175,2524.2,2523.5,4.12214]
[1730494653899,3.96191,2524.1,2523.5,4.12214]
[1730494654866,7.92382,2524.1,2523.5,4.12214]
[1730494655196,3.96191,2524.1,2523.5,4.12214]
[1730494655492,0.396191,2524.0,2523.5,4.12214]
[1730494655708,3.96191,2524.1,2523.6,3.96257]
[1730494655858,3.96191,2524.1,2523.5,4.12214]
[1730494656687,0.8302,2524.0,2523.1,4.12279]
[1730494656868,3.96246,2523.7,2523.1,4.12279]
[1730494657064,0.396246,2523.6,2523.1,4.12279]
[1730494657292,3.96264,2523.6,2523.1,4.12279]
[1730494657494,3.96264,2523.6,2523.0,3.96345]
[1730494658076,3.96279,2523.5,2522.9,3.96359]
[1730494658274,4.77909,2523.5,2522.9,3.96361]
[1730494658578,0.477909,2523.4,2522.9,3.96361]
[1730494658960,4.440809,2523.4,2522.9,3.96361]
[1730494659465,0.477909,2523.4,2522.9,3.96361]
[1730494659659,0.477909,2523.4,2522.9,7.92722]
[1730494660303,0.477909,2523.4,2522.9,3.96361]
[1730494660986,4.8851439,2523.3,2522.7,3.96388]
[1730494661566,4.8851439,2523.3,2522.7,7.92779]
[1730494662496,4.8851439,2523.3,2522.8,3.96379]
[1730494663804,4.8851439,2523.3,2522.9,3.96367]
[1730494663805,0.9219839,2523.3,2522.9,3.96367]
[1730494664005,0.9219839,2523.3,2522.9,7.92734]
[1730494664186,0.9219839,2523.3,2522.9,3.96367]
[1730494664707,0.9219839,2523.3,2523.0,3.96353]
[1730494665203,0.8163,2523.5,2523.1,3.96337]
[1730494665388,0.8163,2523.5,2523.1,4.04262928]
[1730494665596,4.77907,2523.5,2523.0,3.96352]
[1730494665799,0.8163,2523.5,2523.0,3.96352]
[1730494666112,5.6230123,2523.5,2523.0,3.96352]
[1730494666407,5.6230823,2523.5,2522.9,3.96357]
[1730494666571,5.6230823,2523.5,2523.0,3.96353]
[1730494667104,1.6602623,2523.5,2522.7,3.96399]
[1730494667274,1.6602623,2523.5,2523.1,3.96324]
[1730494667475,1.6602623,2523.5,2523.1,7.92648]
[1730494668709,1.6602623,2523.5,2523.1,3.96324]
[1730494669108,5.6230223,2523.5,2523.0,3.96353]
[1730494669415,0.56230223,2523.4,2523.0,3.96353]
[1730494669617,0.56230223,2523.4,2523.1,3.96335]
[1730494669775,1.6602623,2523.5,2523.1,3.96335]
[1730494670314,3.96215,2523.9,2523.3,7.92598]
[1730494670518,3.96157,2524.3,2523.8,3.96226]
[1730494670674,4.73189,2524.5,2523.8,3.96215]
[1730494671019,4.434529,2524.4,2523.9,3.96204]
[1730494671615,0.473189,2524.4,2523.5,0.1595]
[1730494671786,3.96156,2524.3,2523.6,4.04182885]
[1730494671987,3.96166,2524.2,2523.6,3.96259]
[1730494672206,3.96192,2524.1,2523.6,3.96259]
[1730494672404,0.7892,2524.0,2523.6,3.96259]
[1730494672710,0.7892,2524.0,2523.6,3.96246]
[1730494674507,0.7892,2524.0,2523.4,3.96279]
[1730494674691,0.7892,2524.0,2523.6,3.96252]
[1730494674890,4.75119,2524.0,2523.5,3.96273]
[1730494675092,0.9505478,2523.9,2523.6,3.96256]
[1730494675501,0.9505478,2523.9,2523.5,3.96273]
[1730494675887,4.75119,2524.0,2523.5,7.92539]
[1730494676711,4.75119,2524.0,2523.5,3.96266]
[1730494677191,3.28140301,2524.0,2523.5,3.96266]
[1730494677589,7.24345301,2524.0,2523.5,3.96266]
[1730494677797,3.28140301,2524.0,2523.5,3.96267]
[1730494677993,0.3281403,2523.9,2523.5,3.96267]
[1730494680174,1.1140403,2523.9,2523.5,3.96267]
[1730494680975,5.0762503,2523.9,2523.4,3.96278]
[1730494681225,5.0762503,2523.9,2523.5,3.9627]
[1730494681385,0.83576533,2523.8,2523.4,3.96278]
[1730494681723,0.83576533,2523.8,2523.5,3.9627]
[1730494682916,0.68576533,2523.8,2523.5,3.9627]
[1730494683077,0.68576533,2523.8,2523.5,3.776481]
[1730494683479,0.68576533,2523.8,2523.6,3.9625]
[1730494684876,0.68576533,2523.8,2523.4,7.92561]
[1730494685074,0.68576533,2523.8,2523.5,3.96273]
[1730494687783,0.68576533,2523.8,2523.6,0.12399193]
[1730494687981,0.68576533,2523.8,2523.5,3.96273]
[1730494688217,2.94302471,2525.3,2523.5,0.7908]
[1730494688431,0.7949,2524.4,2523.7,6.90545471]
[1730494688725,0.7949,2524.4,2524.0,7.92385]
[1730494689015,0.7949,2524.4,2524.1,0.32237926]
[1730494689223,0.7949,2524.4,2524.2,0.12399048]
[1730494689378,0.7949,2524.4,2524.3,0.32233608]
[1730494689582,4.75623,2524.4,2524.3,0.12399048]
[1730494690182,5.627973,2524.4,2524.3,0.12399048]
[1730494690382,5.627973,2524.4,2523.9,3.96203]
[1730494690383,5.627973,2524.4,2523.9,4.981942]
[1730494690582,5.627973,2524.4,2523.7,4.7759525]
[1730494690583,3.9617,2524.2,2523.8,0.99378123]
[1730494690816,4.7922,2524.1,2523.9,0.57027606]
[1730494691020,4.7922,2524.1,2524.0,0.32232905]
[1730494691321,5.667573,2524.1,2524.0,0.32232905]
[1730494691520,5.667573,2524.1,2524.0,0.12397263]
[1730494691723,5.667573,2524.1,2524.0,0.32234247]
[1730494691924,5.667573,2524.1,2524.0,0.12397263]
[1730494692427,5.667573,2524.1,2524.0,0.32234809]
[1730494693129,5.667573,2524.1,2524.0,0.12397263]
[1730494693280,5.667573,2524.1,2524.0,0.32235154]
[1730494693918,3.96204,2524.0,2523.6,1.02445132]
[1730494694221,4.9250013,2524.0,2523.7,2.2787042]
[1730494694542,4.9250013,2524.0,2523.8,0.57035143]
[1730494694688,4.9250013,2524.0,2523.9,0.3223726]
[1730494695613,4.9250013,2524.0,2523.9,0.1369846]
[1730494697429,4.9250013,2524.0,2523.9,0.12398674]
[1730494697831,4.9250013,2524.0,2523.9,0.12398802]
[1730494699694,4.9250013,2524.0,2523.5,3.96263]
[1730494700717,4.9250013,2524.0,2523.6,0.12399016]
[1730494700894,4.9250013,2524.0,2523.7,0.12399016]
[1730494701091,0.97172013,2523.9,2523.8,0.12399016]
[1730494701430,0.97172013,2523.9,2523.5,3.96263]
[1730494701593,0.97172013,2523.9,2523.6,0.12398854]
[1730494701795,0.97172013,2523.9,2523.7,0.12398854]
[1730494701995,0.97172013,2523.9,2523.5,3.96263]
[1730494702195,0.97172013,2523.9,2523.6,0.12398855]
[1730494702430,0.97172013,2523.9,2523.6,3.96258]
[1730494703345,0.97172013,2523.9,2523.7,0.12398789]
[1730494703500,0.97172013,2523.9,2523.6,3.96258]
[1730494706949,0.97172013,2523.9,2523.6,4.08656814]
[1730494707106,0.97172013,2523.9,2523.6,3.96258]
[1730494707302,0.7955,2523.7,2523.2,0.96928179]
[1730494707502,4.75795,2523.7,2523.3,4.08697674]
[1730494707746,4.75795,2523.7,2523.4,0.12400674]
[1730494708038,4.75795,2523.7,2523.3,3.96297]
[1730494708231,5.62997,2523.7,2523.4,0.12399684]
[1730494708437,5.62997,2523.7,2523.3,3.96297]
[1730494708634,5.62997,2523.7,2523.4,0.12399633]
[1730494708635,3.96282,2523.5,2523.4,0.12399633]
[1730494708942,3.96282,2523.5,2523.0,3.96344]
[1730494708943,0.8049,2523.5,2523.0,3.96344]
[1730494709105,0.8049,2523.5,2522.9,0.7708]
[1730494709106,8.73058,2523.5,2523.1,3.96337]
[1730494709309,8.73058,2523.5,2523.1,0.12401557]
[1730494709514,8.73058,2523.5,2523.0,3.96351]
[1730494709835,8.73058,2523.5,2523.1,0.12401299]
[1730494710050,8.73058,2523.5,2523.0,3.96351]
[1730494710260,3.96313,2523.3,2522.8,3.96372]
[1730494710545,3.96313,2523.3,2522.9,4.08768476]
[1730494710748,3.96313,2523.3,2523.0,0.12401476]
[1730494710949,3.96313,2523.3,2522.9,3.96367]
[1730494711156,4.9235218,2523.3,2523.0,0.1240206]
[1730494711448,4.9235218,2523.3,2522.9,3.96367]
[1730494711607,4.9235218,2523.3,2523.0,0.1240202]
[1730494711808,4.9235218,2523.3,2522.9,3.96367]
[1730494712009,4.9235218,2523.3,2523.0,0.12402016]
[1730494712352,4.9235218,2523.3,2522.9,3.96367]
[1730494712712,4.9235218,2523.3,2523.0,0.1240195]
[1730494713013,4.9235218,2523.3,2522.9,3.96367]
[1730494713214,4.9235218,2523.3,2523.0,0.12401828]
[1730494713410,4.9235218,2523.3,2522.9,3.96367]
[1730494713744,4.9235218,2523.3,2523.0,0.12401772]
[1730494713911,4.9235218,2523.3,2522.9,3.96367]
[1730494714114,4.9235218,2523.3,2523.0,0.1240182]
[1730494714447,4.9235218,2523.3,2522.9,3.96367]
[1730494714629,4.9235218,2523.3,2522.8,4.1621512]
[1730494714630,4.9235218,2523.3,2523.0,0.12401861]
[1730494714948,0.49235218,2523.2,2522.8,8.1259112]
[1730494715241,0.49235218,2523.2,2522.9,4.08769814]
[1730494715443,0.49235218,2523.2,2523.0,0.12401814]
[1730494715635,0.49235218,2523.2,2522.9,3.96368]
[1730494715809,0.49235218,2523.2,2523.0,0.12401599]
[1730494716008,0.49235218,2523.2,2522.9,3.96368]
[1730494716248,0.49235218,2523.2,2523.0,0.12401692]
[1730494716549,0.49235218,2523.2,2522.9,3.96368]
[1730494716708,0.49235218,2523.2,2523.0,0.12401604]
[1730494716911,4.9235218,2523.3,2522.9,3.96368]
[1730494717223,4.9235218,2523.3,2523.0,0.12401198]
[1730494717425,4.9235218,2523.3,2522.9,3.96368]
[1730494717733,4.9235218,2523.3,2523.0,0.12401634]
[1730494717939,0.8215,2523.1,2522.8,0.1984312]
[1730494718114,0.8215,2523.1,2522.9,0.12401579]
[1730494718313,4.78496,2523.1,2522.7,4.08795712]
[1730494718538,4.78488,2523.1,2522.8,0.12402419]
[1730494718756,4.442128,2523.0,2522.5,4.1626412]
[1730494718955,4.442128,2523.0,2522.6,0.1240325]
[1730494719247,4.442128,2523.0,2522.7,0.1240325]
[1730494719453,4.442128,2523.0,2522.8,0.1240325]
[1730494719610,4.442128,2523.0,2522.7,0.1240325]
[1730494719810,4.442128,2523.0,2522.8,0.1240325]
[1730494720014,0.5263628,2522.9,2522.7,0.12402701]
[1730494720215,0.7534,2522.8,2522.4,0.19844322]
[1730494720463,0.7534,2522.8,2522.3,3.9646]
[1730494720464,3.96407,2522.7,2522.3,3.9646]
[1730494721131,0.7534,2522.8,2522.4,0.12405056]
[1730494721332,0.42227875,2522.7,2522.3,0.12405056]
[1730494721637,4.38637875,2522.7,2522.3,3.96453]
[1730494721950,4.38637875,2522.7,2522.3,4.08858056]
[1730494722249,4.38637875,2522.7,2522.3,3.96453]
[1730494725119,0.8136,2522.6,2522.3,3.96453]
[1730494727733,0.8136,2522.6,2522.3,7.92908]
[1730494729926,0.8136,2522.6,2522.3,3.96453]
[1730494730770,3.96456,2522.4,2521.7,3.96547]
[1730494730926,4.766,2522.5,2521.7,0.12405685]
[1730494731274,4.766,2522.5,2522.1,3.96493]
[1730494731625,4.766,2522.5,2522.0,3.96502]
[1730494731924,4.766,2522.5,2522.1,3.96492]
[1730494733659,0.8184,2522.8,2522.5,3.96427]
[1730494733861,4.78231,2522.8,2522.3,3.96456]
[1730494734100,0.8184,2522.8,2522.4,3.96437]
[1730494734597,0.8184,2522.5,2522.1,7.92969]
[1730494734800,3.9646,2522.4,2521.9,3.96523]
[1730494735003,3.96471,2522.3,2521.9,3.96523]
[1730494736064,3.96471,2522.3,2521.8,3.96537]
[1730494736065,3.96481,2522.2,2521.8,3.96537]
[1730494736270,4.443391,2522.1,2521.7,3.9655]
[1730494736507,0.478321,2522.1,2521.7,3.9655]
[1730494736808,0.8019,2522.0,2521.8,3.9654]
[1730494736979,3.96566,2521.7,2521.1,4.7647]
[1730494737161,3.96566,2521.7,2521.1,4.88883253]
[1730494737162,3.96576,2521.6,2521.1,4.88883253]
[1730494737360,4.442466,2521.7,2521.1,4.88883253]
[1730494737361,4.442466,2521.7,2521.2,3.96635]
[1730494737811,8.408186,2521.7,2521.2,3.96635]
[1730494738297,4.442466,2521.7,2521.2,3.96635]
[1730494738464,3.96582,2521.6,2521.1,4.76474]
[1730494738665,4.8868386,2521.6,2521.2,3.96636]
[1730494738857,0.9210186,2521.6,2521.2,3.96636]
[1730494739290,4.8867686,2521.6,2521.1,4.76474]
[1730494739473,4.8867686,2521.6,2521.1,8.542827]
[1730494739660,4.8867686,2521.6,2521.1,4.576387]
[1730494739975,0.93291146,2521.5,2521.1,4.576387]
[1730494740181,3.96575,2521.6,2521.2,3.96636]
[1730494740391,3.96575,2521.6,2521.1,8.542827]
[1730494740603,3.96575,2521.6,2521.1,4.576387]
[1730494740802,3.96575,2521.6,2521.2,3.96634]
[1730494741985,0.476756,2521.7,2521.2,3.96634]
[1730494742182,4.442356,2521.7,2521.1,4.576387]
[1730494742412,0.5244156,2521.6,2521.2,3.96634]
[1730494743381,0.8019,2521.8,2521.4,3.96597]
[1730494743699,4.76586,2521.9,2521.4,4.72326]